bitfinex-derivatives/quotes_SOLF0:USTF0_20250416
["timestamp","ask_amount","ask_price","bid_price","bid_amount"]
[1744815916607,41.26042205,128.07,128.04,0.05312148]
[1744815916808,33.45152205,128.07,128.04,0.05312148]
[1744815918311,0.05152205,128.07,128.06,7.8094]
[1744815919615,33.4,128.1,128.09,7.8076]
[1744815920110,33.4,128.13,128.05,6.2601]
[1744815920308,33.4,128.13,128.06,29.36783958]
[1744815920705,0.03484371,128.11,128.1,7.8066]
[1744815921415,0.03484371,128.11,128.08,7.86098736]
[1744815921616,33.43484371,128.11,128.08,0.05328736]
[1744815922013,33.43484371,128.11,128.1,7.807]
[1744815922210,591.48783958,128.2,128.08,0.05328736]
[1744815922415,33.4,128.18,128.07,29.36783958]
[1744815922714,62.76783958,128.18,128.07,29.36783958]
[1744815923116,62.76783958,128.18,128.11,7.8059]
[1744815923318,62.76783958,128.18,128.13,0.04996345]
[1744815923715,29.36783958,128.16,128.13,0.04996345]
[1744815923917,29.36783958,128.14,128.05,6.2601]
[1744815924117,29.36783958,128.12,128.05,6.2601]
[1744815924517,29.36783958,128.12,128.05,4.2294]
[1744815924715,7.807,128.1,128.06,7.809]
[1744815924915,33.4,128.09,128.07,0.05426542]
[1744815925325,33.4,128.09,128.07,7.86306542]
[1744815925721,33.4,128.09,128.07,0.05426542]
[1744815925923,7.8082,128.08,128.07,0.05426542]
[1744815926224,33.4,128.09,128.07,0.05426542]
[1744815926413,41.208,128.09,128.07,0.05426542]
[1744815926619,33.4,128.09,128.07,0.05426542]
[1744815927023,7.8082,128.08,128.07,0.05426542]
[1744815927221,37.17603958,128.08,128.0,4.0828]
[1744815927413,29.36783958,128.03,127.97,2.1356]
[1744815927620,33.38,128.02,127.97,2.1356]
[1744815927818,29.36783958,128.01,127.95,2.1939]
[1744815928219,29.36783958,127.99,127.88,49.0207]
[1744815928418,33.38,127.98,127.89,77.24090908]
[1744815928619,0.04949687,127.95,127.94,7.8166]
[1744815929215,33.38,127.98,127.93,0.05121385]
[1744815929420,33.38,128.01,127.93,29.41905343]
[1744815929726,29.36783958,128.07,127.97,29.36783958]
[1744815929921,33.38,128.05,127.98,4.3825]
[1744815930121,33.38,128.05,127.99,29.36783958]
[1744815930424,33.38,128.05,128.01,0.05824638]
[1744815930624,0.05386736,128.03,128.01,0.05824638]
[1744815930827,0.05386736,128.03,128.02,7.8119]
[1744815931827,33.38,128.05,128.04,7.8106]
[1744815932027,33.38,128.08,128.04,7.8106]
[1744815932221,33.38,128.08,127.99,29.36783958]
[1744815932421,32.47643958,128.13,128.01,29.36783958]
[1744815932621,33.38,128.12,128.03,29.36783958]
[1744815932821,33.38,128.12,128.06,0.05193077]
[1744815933016,33.38,128.12,128.06,2.06913077]
[1744815933227,29.36783958,128.09,128.06,0.05193077]
[1744815933522,33.38,128.08,128.06,0.05193077]
[1744815934026,41.1885,128.08,128.06,0.05193077]
[1744815934331,33.38,128.08,128.06,0.05193077]
[1744815934518,7.8088,128.07,128.06,0.05193077]
[1744815935128,29.36783958,128.07,127.99,2.0182]
[1744815935323,33.38,128.08,127.99,2.0182]
[1744815936131,0.05279541,128.05,128.02,0.05852724]
[1744815936324,0.05279541,128.05,128.04,7.8106]
[1744815936530,0.05279541,128.05,128.02,0.05852724]
[1744815936830,0.05279541,128.05,128.02,7.87012724]
[1744815937127,33.38,128.04,128.02,0.05852724]
[1744815937631,33.38,128.12,128.02,29.42636682]
[1744815937832,7.8073,128.1,128.02,29.36783958]
[1744815938035,7.8073,128.1,128.01,2.0298]
[1744815938524,62.74783958,128.12,128.04,0.04973431]
[1744815938722,62.74783958,128.12,128.07,0.05623382]
[1744815938931,7.8066,128.11,128.07,0.05623382]
[1744815939234,33.38,128.12,128.07,0.05623382]
[1744815939531,33.38,128.12,128.09,7.8074]
[1744815940433,33.38,128.12,128.08,7.808]
[1744815940636,62.74783958,128.12,128.07,0.05623382]
[1744815941032,29.36783958,128.1,128.07,0.05623382]
[1744815941333,7.8082,128.08,128.01,2.0298]
[1744815941630,33.38,128.07,128.01,2.0298]
[1744815941835,41.1888,128.07,128.01,2.0298]
[1744815942029,41.1888,128.07,128.0,33.38]
[1744815942336,0.05291931,128.05,128.02,0.05470911]
[1744815942535,0.05291931,128.05,128.03,7.8109]
[1744815942736,0.05291931,128.05,128.02,0.05470911]
[1744815943037,0.05291931,128.05,128.02,7.86650911]
[1744815943232,0.05291931,128.05,128.02,0.05470911]
[1744815943737,7.811,128.04,127.97,2.0172]
[1744815943933,33.38,128.03,127.97,2.0172]
[1744815944131,33.38,128.03,128.01,7.8123]
[1744815944634,33.43855988,128.03,128.01,7.86459256]
[1744815945137,33.43855988,128.03,128.02,7.8119]
[1744815946829,33.43855988,128.03,128.01,7.86429256]
[1744815947035,33.43855988,128.03,128.01,0.05229256]
[1744815947533,33.43855988,128.03,128.02,7.8119]
[1744815947728,0.05855988,128.03,128.02,7.8119]
[1744815948536,0.05855988,128.03,128.01,7.86439256]
[1744815949241,0.05855988,128.03,128.01,0.05229256]
[1744815949741,33.38,128.02,128.01,0.05229256]
[1744815950744,0.05855988,128.03,128.01,0.05229256]
[1744815951546,0.05855988,128.03,128.02,7.8119]
[1744815951943,33.38,128.08,128.01,29.42013214]
[1744815952144,33.38,128.08,128.01,29.36783958]
[1744815952644,33.38,128.08,128.05,7.8097]
[1744815952844,33.38,128.08,128.01,29.36783958]
[1744815953144,33.43238305,128.08,128.05,0.05787514]
[1744815953341,7.8094,128.06,127.99,62.74783958]
[1744815953540,7.8094,128.06,127.97,31.56703958]
[1744815953735,62.74783958,128.08,127.97,2.1992]
[1744815953941,29.36783958,128.06,127.97,2.1992]
[1744815954135,62.74783958,128.08,127.97,31.56703958]
[1744815954442,0.05001944,128.04,128.02,7.8114]
[1744815954641,0.05001944,128.04,128.01,0.04948084]
[1744815955235,0.05001944,128.04,128.01,7.86148084]
[1744815956045,7.86071944,128.04,128.01,0.04948084]
[1744815956846,0.05001944,128.04,128.02,7.8116]
[1744815957042,0.05001944,128.04,128.01,0.04948084]
[1744815957242,0.05001944,128.04,128.03,7.8112]
[1744815958146,0.05001944,128.04,128.01,0.04948084]
[1744815958747,0.05001944,128.04,128.01,7.86138084]
[1744815959349,0.05001944,128.04,128.02,7.8116]
[1744815959946,0.05001944,128.04,128.01,7.86158084]
[1744815960246,7.8114,128.03,128.01,0.04948084]
[1744815960448,0.05001944,128.04,128.01,0.04948084]
[1744815961047,7.8116,128.03,128.01,0.04948084]
[1744815961542,0.05001944,128.04,128.01,0.04948084]
[1744815961748,0.05001944,128.04,128.02,7.8116]
[1744815961943,0.05001944,128.04,128.01,0.04948084]
[1744815962144,7.86111944,128.04,128.01,0.04948084]
[1744815962341,0.05001944,128.04,128.01,0.04948084]
[1744815962744,7.8137,127.99,127.96,7.8153]
[1744815962952,33.36,128.0,127.94,31.49393958]
[1744815963245,33.36,128.03,127.96,29.36783958]
[1744815963847,0.05324153,128.01,127.98,0.04979062]
[1744815964048,0.05324153,128.01,127.99,7.8137]
[1744815964747,0.05324153,128.01,127.98,0.04979062]
[1744815965151,0.05324153,128.01,127.99,7.8131]
[1744815965649,0.05324153,128.01,127.98,0.04979062]
[1744815966038,0.05324153,128.01,127.98,29.4176302]
[1744815966243,0.05324153,128.01,127.99,2.0594]
[1744815966651,0.05324153,128.01,127.98,0.04979062]
[1744815967750,0.05324153,128.01,127.99,7.8134]
[1744815968955,0.05324153,128.01,127.98,0.04979062]
[1744815969348,7.8133,128.0,127.98,0.04979062]
[1744815969651,33.38,127.99,127.98,0.04979062]
[1744815970557,33.38,128.06,127.98,29.4176302]
[1744815970753,33.38,128.06,127.99,2.0194]
[1744815970953,62.74783958,128.06,127.99,2.0194]
[1744815971456,7.8103,128.05,128.0,7.8125]
[1744815971664,0.05682854,128.04,128.02,0.05241669]
[1744815972145,29.42466812,128.04,127.98,7.814]
[1744815972346,29.36783958,128.04,127.94,6.1537]
[1744815973151,7.8127,128.01,127.97,7.8149]
[1744815973355,33.4383343,128.0,127.98,0.05073688]
[1744815973556,62.80617388,128.0,127.9,33.38]
[1744815973752,7.8146,127.98,127.95,7.8158]
[1744815973952,62.74783958,128.0,127.9,4.1024]
[1744815974356,7.8152,127.97,127.94,7.8167]
[1744815974657,33.38,127.96,127.94,0.05671114]
[1744815974853,33.38,127.96,127.95,7.8161]
[1744815975059,2.1655,128.03,127.95,7.82]
[1744815975060,33.38,128.03,127.95,7.82]
[1744815975357,33.38,128.03,127.96,31.43703958]
[1744815975752,33.38,128.03,127.96,2.0692]
[1744815975948,33.38,128.03,127.98,7.8143]
[1744815976156,0.05626518,128.02,127.99,0.05082688]
[1744815976755,7.8125,128.01,127.99,0.05082688]
[1744815977862,7.86846518,128.02,127.99,0.05082688]
[1744815978161,0.05626518,128.02,127.99,0.05082688]
[1744815978363,29.42410476,128.02,127.99,0.05082688]
[1744815978563,7.8131,128.0,127.99,0.05082688]
[1744815978962,29.42410476,128.02,127.94,7.8164]
[1744815979164,29.36783958,128.0,127.94,7.8164]
[1744815979456,33.38,127.99,127.94,7.8164]
[1744815979660,33.38,127.99,127.91,4.2739]
[1744815979661,7.8154,127.97,127.93,7.817]
[1744815980057,0.0594729,127.96,127.94,0.04948135]
[1744815980262,0.0594729,127.96,127.94,7.86608135]
[1744815980463,0.0594729,127.96,127.94,0.04948135]
[1744815980961,562.46,128.07,127.94,0.04948135]
[1744815981262,62.74783958,128.05,127.93,62.74783958]
[1744815981461,7.8117,128.03,127.93,62.74783958]
[1744815981763,62.74783958,128.05,127.93,62.74783958]
[1744815981961,62.74783958,128.05,127.99,7.8137]
[1744815982357,0.05111151,128.03,128.01,0.04982505]
[1744815984366,7.86241151,128.03,128.01,0.04982505]
[1744815985471,29.41895109,128.03,127.9,33.38]
[1744815985767,29.36783958,128.01,127.92,4.0538]
[1744815985965,29.36783958,127.99,127.94,7.8167]
[1744815986180,29.36783958,127.97,127.91,2.1054]
[1744815986464,29.36783958,127.95,127.88,4.2075]
[1744815986664,0.05125931,127.95,127.9,0.05075624]
[1744815986864,2.1248,128.04,127.91,29.36783958]
[1744815987172,7.8132,128.0,127.96,7.8153]
[1744815987470,62.72783958,128.03,127.91,29.36783958]
[1744815987671,62.72783958,128.03,127.93,29.36783958]
[1744815987866,33.36,128.03,127.94,4.1534]
[1744815988069,0.05256382,127.99,127.97,0.05545188]
[1744815988370,0.05256382,127.99,127.97,7.87005188]
[1744815988571,0.05256382,127.99,127.97,0.05545188]
[1744815988771,33.36,128.03,127.97,0.05545188]
[1744815988967,33.36,128.03,127.99,7.8133]
[1744815989169,33.36,128.03,127.95,29.36783958]
[1744815989670,33.36,128.03,128.0,7.8125]
[1744815990072,33.4160764,128.03,128.0,7.8125]
[1744815990866,0.0560764,128.03,127.99,29.36783958]
[1744815991072,0.0560764,128.03,128.0,2.0474]
[1744815991572,0.0560764,128.03,128.02,7.8119]
[1744815991774,0.0560764,128.03,128.01,0.05738027]
[1744815992366,29.42391598,128.03,128.01,0.05738027]
[1744815992571,37.24391598,128.03,127.89,69.00285733]
[1744815992772,29.36783958,127.97,127.89,69.00285733]
[1744815992970,33.36,127.96,127.92,7.8179]
[1744815993171,33.36,127.96,127.89,69.00285733]
[1744815993473,0.0512204,127.94,127.91,7.86993766]
[1744815993877,0.0512204,127.94,127.91,0.05183766]
[1744815995579,0.0512204,127.94,127.92,7.8175]
[1744815995776,0.0512204,127.94,127.91,0.05183766]
[1744815996378,33.36,128.0,127.93,29.36783958]
[1744815996580,33.36,128.01,127.94,1.9915]
[1744815996773,7.8142,127.99,127.94,9.808]
[1744815997180,62.72783958,128.01,127.94,9.808]
[1744815997379,0.05112267,127.99,127.96,0.05950104]
[1744815999283,7.8146,127.98,127.96,0.05950104]
[1744815999482,33.36,127.97,127.96,0.05950104]
[1744816000078,41.1749,127.97,127.9,33.36]
[1744816000278,41.1749,127.97,127.92,7.8179]
[1744816000582,7.8156,127.96,127.92,7.8179]
[1744816001082,62.72783958,127.97,127.9,2.1677]
[1744816001282,0.05845912,127.95,127.93,0.05715155]
[1744816001880,29.4262987,127.95,127.93,0.05715155]
[1744816002280,7.8167,127.94,127.93,0.05715155]
[1744816002983,29.4262987,127.95,127.89,2.191]
[1744816003179,29.4262987,127.95,127.86,2.1127]
[1744816003381,29.36783958,127.95,127.88,7.8201]
[1744816003581,7.8183,127.92,127.88,7.8201]
[1744816003781,33.36,127.92,127.87,7.8208]
[1744816003977,7.87577479,127.91,127.88,0.0576491]
[1744816004387,0.05687479,127.91,127.88,0.0576491]
[1744816004881,33.36,127.92,127.88,0.0576491]
[1744816005278,562.58,127.96,127.88,29.42548868]
[1744816005476,33.36,127.95,127.88,29.36783958]
[1744816006079,0.05011828,127.93,127.9,0.05836662]
[1744816006490,0.05011828,127.93,127.91,7.8186]
[1744816006686,0.05011828,127.93,127.91,2.0034]
[1744816007691,7.86751828,127.93,127.9,0.05836662]
[1744816007885,0.05011828,127.93,127.9,0.05836662]
[1744816008084,7.8186,127.91,127.9,0.05836662]
[1744816008690,62.72783958,127.91,127.83,2.0573]
[1744816009088,29.36783958,127.89,127.83,2.0573]
[1744816009288,29.36783958,127.87,127.77,33.36]
[1744816009492,33.36,127.86,127.78,2.006]
[1744816009798,0.05460837,127.83,127.81,0.05708594]
[1744816011292,7.87810837,127.83,127.81,0.05708594]
[1744816011493,0.05460837,127.83,127.81,0.05708594]
[1744816011793,7.8241,127.82,127.81,0.05708594]
[1744816012195,33.38,127.82,127.75,2.0262]
[1744816012495,29.36783958,127.81,127.75,2.0262]
[1744816012896,37.19283958,127.81,127.76,7.8274]
[1744816013396,33.40543958,127.85,127.77,0.05650353]
[1744816013397,0.05512198,127.8,127.77,0.05650353]
[1744816013597,33.38,127.85,127.77,0.05170635]
[1744816013797,33.38,127.85,127.76,18.13593164]
[1744816014597,0.05933108,127.82,127.79,0.05930214]
[1744816015297,33.38,127.85,127.79,0.05930214]
[1744816015500,33.38,127.89,127.8,48.13593164]
[1744816015797,81.51593164,127.89,127.81,2.0257]
[1744816015990,81.51593164,127.89,127.83,7.8232]
[1744816016189,89.33603164,127.89,127.81,2.0257]
[1744816016400,0.05608726,127.86,127.84,0.05470723]
[1744816016596,0.05608726,127.86,127.85,7.8222]
[1744816017396,33.38,127.89,127.87,7.8208]
[1744816017695,33.38,127.89,127.82,48.13593164]
[1744816017902,33.38,127.89,127.86,7.8215]
[1744816018202,33.38,127.89,127.81,2.0257]
[1744816018501,0.05914519,127.86,127.85,7.8219]
[1744816019692,33.38,127.89,127.88,7.8204]
[1744816019898,33.38,127.92,127.83,33.38]
[1744816020205,33.38,127.92,127.89,7.8198]
[1744816020697,33.38,127.92,127.83,33.38]
[1744816020906,33.38,127.92,127.9,7.8188]
[1744816021200,33.42406432,127.92,127.9,7.87215051]
[1744816021396,33.42406432,127.92,127.9,0.05335051]
[1744816021799,48.13593164,127.91,127.86,7.8212]
[1744816021999,2.1076,127.91,127.82,50.24903164]
[1744816022203,33.38,127.92,127.84,48.13593164]
[1744816022405,33.36,127.95,127.86,48.13593164]
[1744816022607,33.36,127.95,127.87,1.9996]
[1744816022904,0.05915453,127.92,127.9,0.04949393]
[1744816023594,0.05915453,127.92,127.9,7.86839393]
[1744816023798,0.05915453,127.92,127.9,0.04949393]
[1744816024003,0.05915453,127.92,127.9,7.86859393]
[1744816025003,0.05915453,127.92,127.9,0.04949393]
[1744816026601,7.8186,127.91,127.9,0.04949393]
[1744816026903,81.49593164,127.91,127.83,2.1881]
[1744816027304,89.31483164,127.91,127.83,2.1881]
[1744816027506,81.49593164,127.91,127.83,2.1881]
[1744816027806,0.05454938,127.88,127.86,7.87358319]
[1744816028202,0.05454938,127.88,127.86,0.05228319]
[1744816028407,0.05454938,127.88,127.87,7.821]
[1744816029301,0.05454938,127.88,127.86,7.87358319]
[1744816029508,0.05454938,127.88,127.86,0.05228319]
[1744816029900,0.05454938,127.88,127.86,7.87368319]
[1744816030205,0.05454938,127.88,127.86,0.05228319]
[1744816030707,0.05454938,127.88,127.87,7.821]
[1744816031807,0.05454938,127.88,127.86,0.05228319]
[1744816033008,0.05454938,127.88,127.86,7.87348319]
[1744816033907,0.05454938,127.88,127.86,0.05228319]
[1744816034809,0.05454938,127.88,127.87,7.821]
[1744816036311,0.05454938,127.88,127.86,7.87348319]
[1744816036607,0.05454938,127.88,127.86,0.05228319]
[1744816037004,0.05454938,127.88,127.87,7.821]
[1744816037404,33.36,127.91,127.86,0.05228319]
[1744816037607,33.36,127.91,127.9,7.8192]
[1744816037802,33.36,127.91,127.84,29.57984395]
[1744816038409,0.05526741,127.89,127.86,0.05738519]
[1744816038609,0.05526741,127.89,127.86,7.87878519]
[1744816038806,0.05526741,127.89,127.86,0.05738519]
[1744816039010,0.05526741,127.89,127.87,7.8207]
[1744816039405,0.05526741,127.89,127.86,0.05738519]
[1744816039814,0.05526741,127.89,127.86,7.87848519]
[1744816040215,0.05526741,127.89,127.87,7.821]
[1744816041611,0.05526741,127.89,127.86,7.87868519]
[1744816042313,29.57984395,127.87,127.82,4.2827]
[1744816042614,29.57984395,127.85,127.78,2.0462]
[1744816043019,29.57984395,127.85,127.8,7.825]
[1744816043414,0.05143822,127.84,127.81,0.04983301]
[1744816043617,7.87453822,127.84,127.81,0.04983301]
[1744816046822,0.05143822,127.84,127.81,0.04983301]
[1744816047224,0.05143822,127.84,127.81,7.87453301]
[1744816047419,0.05143822,127.84,127.81,0.04983301]
[1744816047619,33.36,127.9,127.81,62.98967696]
[1744816047820,41.1796,127.9,127.85,7.8219]
[1744816048020,33.36,127.9,127.85,7.8219]
[1744816048323,41.1797,127.9,127.85,7.8219]
[1744816048625,0.04950683,127.89,127.86,0.05888937]
[1744816049423,0.04950683,127.89,127.86,7.88048937]
[1744816049625,7.86940683,127.89,127.86,0.05888937]
[1744816049821,0.04950683,127.89,127.86,0.05888937]
[1744816050825,7.86970683,127.89,127.86,0.05888937]
[1744816051625,7.8205,127.88,127.86,0.05888937]
[1744816052030,0.04950683,127.89,127.86,0.05888937]
[1744816052329,7.86960683,127.89,127.86,0.05888937]
[1744816052530,0.04950683,127.89,127.86,0.05888937]
[1744816053025,0.04950683,127.89,127.88,7.8204]
[1744816054527,0.04950683,127.89,127.86,0.05888937]
[1744816055931,0.04950683,127.89,127.87,7.8205]
[1744816056630,0.04950683,127.89,127.88,7.8204]
[1744816056833,0.04950683,127.89,127.86,0.05888937]
[1744816057034,0.04950683,127.89,127.87,7.8207]
[1744816058736,0.04950683,127.89,127.86,7.88018937]
[1744816059135,0.04950683,127.89,127.86,0.05888937]
[1744816059335,0.04950683,127.89,127.87,7.8209]
[1744816059634,0.04950683,127.89,127.86,0.05888937]
[1744816060436,0.04950683,127.89,127.87,7.8205]
[1744816060734,0.04950683,127.89,127.86,0.05888937]
[1744816060934,0.04950683,127.89,127.87,7.8209]
[1744816061136,0.04950683,127.89,127.86,0.05888937]
[1744816061536,0.04950683,127.89,127.87,7.821]
[1744816061938,0.04950683,127.89,127.86,0.05888937]
[1744816062234,0.04950683,127.89,127.88,7.8204]
[1744816063340,33.36,127.91,127.86,0.05888937]
[1744816064339,0.04879952,127.9,127.86,0.05888937]
[1744816065034,0.04879952,127.9,127.89,7.8198]
[1744816065431,0.04879952,127.9,127.86,0.05888937]
[1744816065836,0.04879952,127.9,127.88,7.8199]
[1744816066442,0.04879952,127.9,127.89,7.8198]
[1744816067533,0.04879952,127.9,127.86,0.05888937]
[1744816068643,0.04879952,127.9,127.87,7.8209]
[1744816068844,0.04879952,127.9,127.86,0.05888937]
[1744816069237,0.04879952,127.9,127.88,7.8201]
[1744816069441,0.04879952,127.9,127.86,0.05888937]
[1744816069742,0.04879952,127.9,127.88,7.8201]
[1744816072344,0.04879952,127.9,127.89,7.8198]
[1744816072545,0.04879952,127.9,127.86,0.05888937]
[1744816073044,0.04879952,127.9,127.88,7.8199]
[1744816073247,0.04879952,127.9,127.86,0.05888937]
[1744816073544,0.04879952,127.9,127.89,7.8198]
[1744816073743,0.04879952,127.9,127.86,0.05888937]
[1744816074143,0.04879952,127.9,127.87,7.8206]
[1744816074443,33.38879952,127.9,127.87,7.8206]
[1744816074644,33.38879952,127.9,127.86,0.05888937]
[1744816074845,33.38879952,127.9,127.87,7.8209]
[1744816075147,33.38879952,127.9,127.86,0.05888937]
[1744816075442,33.38879952,127.9,127.88,7.8204]
[1744816075843,33.38879952,127.9,127.86,18.53800836]
[1744816076045,0.04879952,127.9,127.89,7.8198]
[1744816079346,33.34,127.93,127.92,7.818]
[1744816081748,33.32,127.96,127.95,7.8159]
[1744816082548,51.79911899,127.99,127.94,0.05561755]
[1744816083247,59.61311899,127.99,127.95,7.8157]
[1744816083451,59.61311899,127.99,127.94,0.05561755]
[1744816083648,33.32,127.98,127.95,7.8157]
[1744816084454,33.32,127.98,127.96,7.8154]
[1744816084751,33.32,127.98,127.94,0.05561755]
[1744816085046,33.32,127.99,127.94,0.05561755]
[1744816086347,51.79911899,127.99,127.94,0.05561755]
[1744816086950,51.79911899,127.99,127.96,7.8152]
[1744816087648,33.32,127.99,127.94,0.05561755]
[1744816088050,33.32,127.99,127.98,7.8143]
[1744816091557,18.47911899,128.03,128.0,7.8126]
[1744816091751,51.79911899,128.03,128.0,0.05335936]
[1744816092157,51.79911899,128.03,128.0,7.86635936]
[1744816092853,59.61051899,128.03,128.0,0.05335936]
[1744816093058,18.47911899,128.01,127.93,1.9916]
[1744816093253,18.47911899,127.99,127.95,7.8157]
[1744816093452,33.32,127.98,127.93,1.9916]
[1744816093957,18.47911899,127.95,127.88,18.47911899]
[1744816094252,33.32,127.94,127.91,7.8185]
[1744816094850,18.47911899,127.93,127.87,2.0062]
[1744816095249,0.05980841,127.91,127.89,0.05066396]
[1744816096260,0.05980841,127.91,127.9,7.8192]
[1744816104768,19.839743,128.01,127.9,26.29911899]
[1744816104967,33.32,127.98,127.92,18.47911899]
[1744816105769,0.04712442,127.96,127.95,7.8158]
[1744816106570,0.04712442,127.96,127.94,7.86900017]
[1744816106771,0.04712442,127.96,127.94,0.05250017]
[1744816107869,0.04712442,127.96,127.95,7.8161]
[1744816108773,0.04712442,127.96,127.94,7.86890017]
[1744816108970,0.04712442,127.96,127.94,0.05250017]
[1744816110073,7.86292442,127.96,127.94,0.05250017]
[1744816110777,0.04712442,127.96,127.94,0.05250017]
[1744816111175,0.04712442,127.96,127.94,7.86920017]
[1744816112078,0.04712442,127.96,127.94,0.05250017]
[1744816112676,0.04712442,127.96,127.94,7.86920017]
[1744816113276,0.04712442,127.96,127.95,7.8161]
[1744816123883,33.28,128.01,127.95,18.47911899]
[1744816124377,33.28,128.01,128.0,7.8131]
[1744816124580,33.28,128.01,127.95,33.28]
[1744816124886,33.28,128.01,127.98,7.8139]
[1744816125185,33.28,128.01,127.97,0.05775492]
[1744816125387,33.28,128.01,127.99,7.8135]
[1744816125686,51.75911899,128.01,127.97,0.05775492]
[1744816126081,51.75911899,128.01,127.97,7.87245492]
[1744816126280,59.57181899,128.01,127.97,7.87245492]
[1744816128577,7.8134,128.0,127.97,0.05775492]
[1744816128777,18.47911899,127.99,127.97,0.05775492]
[1744816128984,59.57191899,128.01,127.97,0.05775492]
[1744816129184,51.75911899,128.01,127.97,0.05775492]
[1744816129585,7.8135,128.0,127.97,0.05775492]
[1744816131087,59.57191899,128.01,127.97,7.87265492]
[1744816131286,51.75911899,128.01,127.97,7.87265492]
[1744816131590,59.57181899,128.01,127.97,7.87265492]
[1744816131891,59.57181899,128.01,127.97,0.05775492]
[1744816132291,33.28,128.01,127.97,0.05775492]
[1744816132488,33.28,128.01,127.98,7.8142]
[1744816132688,33.28,128.01,127.97,0.05775492]
[1744816133290,33.28,128.01,127.99,7.8134]
[1744816133787,33.28,128.01,127.98,7.814]
[1744816134091,33.28,128.01,127.97,0.05775492]
[1744816134287,33.28,128.01,127.99,7.8134]
[1744816134491,33.28,128.01,127.97,0.05775492]
[1744816135194,33.28,128.01,127.99,7.8136]
[1744816137894,33.28,128.01,127.98,7.814]
[1744816138098,33.28,128.01,127.97,0.05775492]
[1744816139090,33.28,128.01,128.0,7.8131]
[1744816141902,33.28,128.01,127.97,0.05775492]
[1744816142599,33.28,128.01,127.97,2.23215492]
[1744816142904,18.47911899,128.06,127.98,33.24]
[1744816143100,18.47911899,128.04,128.01,0.05428784]
[1744816143302,51.71911899,128.04,128.01,0.05872184]
[1744816143503,59.52971899,128.04,128.01,0.05872184]
[1744816143702,51.71911899,128.04,128.01,0.05872184]
[1744816144203,59.52981899,128.04,128.01,0.05872184]
[1744816144401,51.71911899,128.04,128.01,0.05872184]
[1744816144602,18.47911899,128.02,127.94,35.37]
[1744816144903,18.47911899,128.0,127.94,2.13]
[1744816145099,33.24,127.99,127.94,2.13]
[1744816145605,0.05063253,127.98,127.95,0.05469655]
[1744816146808,18.52975152,127.98,127.95,0.05469655]
[1744816147306,7.8152,127.97,127.95,0.05469655]
[1744816147506,18.47911899,127.96,127.89,4.2998]
[1744816147705,33.24,127.95,127.89,4.2998]
[1744816148102,33.24,127.95,127.89,22.77891899]
[1744816148406,33.24,127.95,127.92,7.8176]
[1744816148608,33.29409092,127.95,127.92,0.05506555]
[1744816149512,26.29611899,127.94,127.92,0.05506555]
[1744816149708,18.47911899,127.94,127.81,571.35071433]
[1744816150005,26.29741899,127.92,127.87,7.821]
[1744816150204,33.24,127.91,127.87,7.821]
[1744816150513,41.0587,127.91,127.86,7.8213]
[1744816150704,33.24,127.91,127.84,18.47911899]
[1744816150904,0.05009803,127.9,127.87,0.05319031]
[1744816151208,0.05009803,127.9,127.87,7.87389031]
[1744816151608,0.05009803,127.9,127.87,0.05319031]
[1744816151805,18.47911899,128.01,127.88,18.47911899]
[1744816152103,33.24,127.98,127.93,18.47911899]
[1744816152308,33.24,128.01,127.95,18.47911899]
[1744816152505,33.24,128.01,127.97,18.47911899]
[1744816152804,0.05595562,128.0,127.98,7.86655377]
[1744816153408,0.05595562,128.0,127.99,7.8137]
[1744816153804,33.24,128.04,127.98,0.05235377]
[1744816154005,33.24,128.04,128.0,7.8126]
[1744816154804,0.05793904,128.03,128.01,0.05171269]
[1744816157401,0.05793904,128.03,128.01,7.86391269]
[1744816158313,0.05793904,128.03,128.02,7.8119]
[1744816158708,3.904e-05,128.03,128.02,7.8119]
[1744816161012,3.904e-05,128.03,128.01,0.05171269]
[1744816161813,3.904e-05,128.03,128.02,7.8119]
[1744816164516,3.904e-05,128.03,128.01,7.86401269]
[1744816164907,3.904e-05,128.03,128.01,0.05171269]
[1744816166105,3.904e-05,128.03,128.01,7.86381269]
[1744816166310,3.904e-05,128.03,128.01,0.05171269]
[1744816166515,3.904e-05,128.03,128.02,7.8119]
[1744816166715,3.904e-05,128.03,128.01,0.05171269]